bitfinex/quotes_BTCUSD_20241111
["timestamp","ask_amount","ask_price","bid_price","bid_amount"]
[1731335047154,0.164,81607.0,81606.0,0.20469409]
[1731335047365,0.178,81607.0,81606.0,0.20469409]
[1731335047590,0.178,81607.0,81606.0,0.21083494]
[1731335047827,0.001688,81609.0,81608.0,0.255537]
[1731335048043,0.18246954,81618.0,81617.0,0.122523]
[1731335048254,0.18246954,81618.0,81617.0,0.12695307]
[1731335048754,0.002,81631.0,81617.0,0.12695307]
[1731335048755,0.002,81631.0,81626.0,0.122509]
[1731335048957,0.00244374,81635.0,81626.0,0.122509]
[1731335049165,0.00244374,81635.0,81626.0,0.00442949]
[1731335049366,0.12594221,81634.0,81628.0,0.245011]
[1731335049570,0.18246954,81635.0,81619.0,0.00245001]
[1731335049772,0.18246954,81634.0,81633.0,0.122499]
[1731335049999,0.09009401,81634.0,81633.0,0.122499]
[1731335050205,0.09009401,81634.0,81633.0,0.12691555]
[1731335050414,0.09009401,81634.0,81633.0,0.00441655]
[1731335050612,0.20023274,81640.0,81634.0,0.122497]
[1731335050816,0.20023274,81640.0,81619.0,0.00722731]
[1731335050817,0.011,81635.0,81619.0,0.00722731]
[1731335051020,0.011,81635.0,81634.0,0.122497]
[1731335051441,0.025,81635.0,81634.0,0.122497]
[1731335051654,0.011,81635.0,81634.0,0.01315587]
[1731335051833,0.12838595,81639.0,81632.0,0.122499]
[1731335051834,0.002,81634.0,81632.0,0.122499]
[1731335052033,0.002,81634.0,81633.0,0.01315605]
[1731335052234,0.25087695,81639.0,81633.0,0.122499]
[1731335052654,0.12838595,81639.0,81635.0,0.122496]
[1731335052988,0.12594221,81639.0,81636.0,0.122494]
[1731335053127,0.12594221,81639.0,81636.0,0.122493]
[1731335053325,0.12594221,81639.0,81638.0,0.122491]
[1731335053726,0.12594221,81639.0,81636.0,0.122494]
[1731335054126,0.12594221,81639.0,81636.0,0.123494]
[1731335054448,0.12594221,81639.0,81637.0,0.122492]
[1731335054627,0.12594221,81639.0,81638.0,0.122491]
[1731335055002,0.13994221,81639.0,81638.0,0.122491]
[1731335055242,0.014,81639.0,81638.0,0.122491]
[1731335055451,0.014,81639.0,81638.0,0.13563398]
[1731335055649,0.028,81639.0,81638.0,0.13563398]
[1731335056004,0.001688,81641.0,81640.0,0.122488]
[1731335056206,0.001688,81641.0,81640.0,0.13563098]
[1731335056406,0.001688,81641.0,81640.0,0.13808045]
[1731335056607,0.001688,81641.0,81640.0,0.13563098]
[1731335057431,0.013688,81641.0,81640.0,0.13663098]
[1731335057584,0.013688,81641.0,81640.0,0.16208045]
[1731335057818,0.001688,81658.0,81657.0,0.122463]
[1731335058001,0.001688,81658.0,81657.0,0.12491191]
[1731335058194,0.001688,81658.0,81657.0,0.13559505]
[1731335058403,0.79829466,81658.0,81657.0,0.01313205]
[1731335058602,0.79829466,81658.0,81640.0,0.001]
[1731335058603,0.002,81650.0,81641.0,0.01311386]
[1731335058828,0.25,81651.0,81640.0,0.001]
[1731335058829,0.122477,81648.0,81640.0,0.001]
[1731335059028,0.12838595,81647.0,81642.0,0.00496459]
[1731335059229,0.12838595,81647.0,81641.0,0.0049639]
[1731335059428,0.252,81651.0,81635.0,0.24499]
[1731335059721,0.12594221,81650.0,81636.0,0.01556259]
[1731335059925,0.012,81650.0,81649.0,0.122475]
[1731335060464,0.012,81650.0,81649.0,0.12743346]
[1731335061078,0.18246954,81654.0,81651.0,0.122472]
[1731335061270,0.12594221,81653.0,81652.0,0.00495654]
[1731335061472,0.12594221,81653.0,81652.0,0.12742654]
[1731335061686,0.077988,81658.0,81653.0,0.244938]
[1731335061894,0.20393021,81658.0,81657.0,0.122463]
[1731335062093,0.001688,81658.0,81657.0,0.122463]
[1731335062294,0.001688,81658.0,81657.0,0.14051254]
[1731335062456,0.001688,81658.0,81657.0,0.12741047]
[1731335062664,0.001688,81658.0,81657.0,0.14051272]
[1731335062881,0.12763021,81658.0,81657.0,0.01804972]
[1731335063089,0.14063021,81658.0,81657.0,0.00594747]
[1731335063290,0.14063021,81658.0,81657.0,0.001]
[1731335063907,0.84183495,81658.0,81657.0,0.001]
[1731335064104,0.84139121,81658.0,81657.0,0.002]
[1731335064321,0.82839121,81658.0,81657.0,0.001]
[1731335064522,0.82839121,81658.0,81639.0,0.122489]
[1731335064523,0.25,81648.0,81639.0,0.122489]
[1731335064705,0.25,81648.0,81636.0,0.244988]
[1731335064706,0.122481,81646.0,81636.0,0.244988]
[1731335064903,0.12594221,81645.0,81644.0,0.122482]
[1731335065163,0.12594221,81645.0,81632.0,0.250001]
[1731335065380,0.12794221,81645.0,81644.0,0.0049311]
[1731335065560,0.12594221,81645.0,81642.0,0.122485]
[1731335065772,0.12594221,81645.0,81644.0,0.0049311]
[1731335065931,0.12594221,81645.0,81643.0,0.00493179]
[1731335066132,0.12594221,81645.0,81637.0,0.244986]
[1731335066333,0.12594221,81645.0,81644.0,0.0049311]
[1731335066585,0.12594221,81645.0,81642.0,0.122485]
[1731335066799,0.12594221,81645.0,81642.0,0.001]
[1731335067171,0.12594221,81645.0,81639.0,0.122489]
[1731335067172,0.122483,81644.0,81639.0,0.122489]
[1731335067370,0.12594221,81645.0,81640.0,0.122488]
[1731335067569,0.24842421,81645.0,81644.0,0.001]
[1731335067771,0.26142421,81645.0,81644.0,0.002]
[1731335068320,0.26386795,81645.0,81644.0,0.001]
[1731335068673,0.12594221,81645.0,81644.0,0.123482]
[1731335068883,0.12594221,81645.0,81644.0,0.122482]
[1731335069089,0.013,81645.0,81644.0,0.123482]
[1731335069288,0.25,81648.0,81647.0,0.122478]
[1731335069488,0.37594221,81648.0,81640.0,0.244977]
[1731335069669,0.37594221,81648.0,81639.0,0.001]
[1731335069670,0.013,81645.0,81644.0,0.001]
[1731335069878,0.013,81645.0,81644.0,0.123482]
[1731335070523,0.013,81645.0,81644.0,0.002]
[1731335070722,0.015,81645.0,81644.0,0.002]
[1731335071073,0.002,81645.0,81644.0,0.001]
[1731335071315,0.013,81645.0,81644.0,0.002]
[1731335071425,0.12594221,81647.0,81644.0,0.001]
[1731335071768,0.12594221,81647.0,81646.0,0.122479]
[1731335073236,0.572912,81658.0,81646.0,0.122479]
[1731335073237,0.25,81657.0,81646.0,0.0141298]
[1731335073451,0.18246954,81654.0,81653.0,0.122469]
[1731335073849,0.37594221,81657.0,81653.0,0.00493662]
[1731335073979,0.37594221,81657.0,81656.0,0.122464]
[1731335074208,0.077988,81658.0,81657.0,0.122463]
[1731335074414,0.20393021,81658.0,81657.0,0.122463]
[1731335074791,0.20393021,81658.0,81657.0,0.00493662]
[1731335075197,0.12763021,81658.0,81657.0,0.13560413]
[1731335075407,0.001688,81658.0,81657.0,0.14054075]
[1731335075657,0.001688,81658.0,81657.0,0.1640172]
[1731335075814,0.001688,81658.0,81657.0,0.1429898]
[1731335076026,0.001688,81658.0,81657.0,0.1650172]
[1731335076027,0.014688,81658.0,81657.0,0.1650172]
[1731335076381,0.001688,81658.0,81657.0,0.16501719]
[1731335076779,0.001688,81658.0,81657.0,0.16401719]
[1731335076978,0.001688,81658.0,81657.0,0.16156815]
[1731335077724,0.006688,81658.0,81657.0,0.16156815]
[1731335078180,0.006688,81658.0,81657.0,0.16158414]
[1731335078322,0.006688,81658.0,81657.0,0.18958414]
[1731335078974,0.001688,81658.0,81657.0,0.18958414]
[1731335079178,0.001688,81658.0,81657.0,0.19058414]
[1731335079363,0.001688,81658.0,81657.0,0.18858414]
[1731335079557,0.001688,81658.0,81657.0,0.18958414]
[1731335079955,0.001688,81658.0,81657.0,0.19658414]
[1731335080470,0.001688,81658.0,81657.0,0.18958414]
[1731335080955,0.001688,81658.0,81657.0,0.19358414]
[1731335081179,0.001688,81658.0,81657.0,0.19857214]
[1731335081375,0.001688,81658.0,81657.0,0.13139962]
[1731335081541,0.001688,81658.0,81657.0,0.1675703]
[1731335081939,0.001688,81658.0,81657.0,0.1655703]
[1731335082111,0.001688,81658.0,81657.0,0.1615703]
[1731335082317,0.001688,81658.0,81657.0,0.1665703]
[1731335082542,0.001688,81658.0,81657.0,0.1655703]
[1731335083017,0.001688,81658.0,81657.0,0.1615703]
[1731335083359,0.001688,81658.0,81657.0,0.1635703]
[1731335083975,0.001688,81658.0,81657.0,0.1615703]
[1731335084497,0.013688,81658.0,81657.0,0.1625703]
[1731335084675,0.001688,81658.0,81657.0,0.1615703]
[1731335085075,0.013688,81658.0,81657.0,0.1625703]
[1731335085383,0.001688,81658.0,81657.0,0.1625703]
[1731335085968,0.001688,81658.0,81657.0,0.1615703]
[1731335087860,0.008688,81658.0,81657.0,0.1625703]
[1731335088065,0.008688,81658.0,81657.0,0.16503428]
[1731335088271,0.008688,81658.0,81657.0,0.33413773]
[1731335088447,0.008688,81658.0,81657.0,0.33668878]
[1731335088814,0.244851,81683.0,81657.0,0.33668878]
[1731335088815,0.18246954,81680.0,81679.0,0.12243]
[1731335089017,0.18246954,81680.0,81679.0,0.15661571]
[1731335089190,0.18246954,81680.0,81679.0,0.16146107]
[1731335089534,0.25,81692.0,81679.0,0.03903107]
[1731335089744,0.18246954,81684.0,81683.0,0.122424]
[1731335089943,0.25,81692.0,81683.0,0.03418571]
[1731335090145,0.122421,81685.0,81684.0,0.03418571]
[1731335090584,0.24836321,81685.0,81684.0,0.03900482]
[1731335090789,0.32556321,81685.0,81684.0,0.0131479]
[1731335091439,0.33656321,81685.0,81684.0,0.01413388]
[1731335091641,0.33656321,81685.0,81684.0,0.01413392]
[1731335091863,0.32556321,81685.0,81684.0,0.01313392]
[1731335092083,0.33556321,81685.0,81684.0,0.01413392]
[1731335092231,0.33756321,81685.0,81684.0,0.01413392]
[1731335092437,0.20514221,81685.0,81679.0,0.001]
[1731335092642,0.122428,81680.0,81679.0,0.001]
[1731335092908,0.122428,81680.0,81679.0,0.01313294]
[1731335093498,0.25037021,81680.0,81679.0,0.01313294]
[1731335093701,0.32627021,81680.0,81679.0,0.01313294]
[1731335093908,0.122453,81664.0,81663.0,0.01313082]
[1731335094108,0.122451,81666.0,81663.0,0.01313082]
[1731335094310,0.12245,81666.0,81664.0,0.01313082]
[1731335094521,0.122448,81668.0,81665.0,0.01313082]
[1731335094754,0.122448,81668.0,81666.0,0.01313082]
[1731335094957,0.002,81674.0,81660.0,0.00628522]
[1731335095130,0.18246954,81672.0,81661.0,0.01313455]
[1731335095286,0.122447,81668.0,81662.0,0.01313455]
[1731335095516,0.0759,81680.0,81663.0,0.02297512]
[1731335095719,0.18246954,81674.0,81669.0,0.16910345]
[1731335095929,0.30490754,81674.0,81670.0,0.01313455]
[1731335096131,0.30490754,81674.0,81671.0,0.01313455]
[1731335096132,0.12444,81672.0,81671.0,0.01313455]
[1731335096684,0.12244,81672.0,81671.0,0.01313455]
[1731335097100,0.12444,81672.0,81671.0,0.01313455]
[1731335097508,0.12244,81672.0,81671.0,0.01313455]
[1731335098460,0.12244,81672.0,81654.0,0.244935]
[1731335098461,0.377463,81657.0,81640.0,0.000844]
[1731335098662,0.450885,81642.0,81640.0,0.000844]
[1731335098878,0.82682721,81642.0,81640.0,0.000844]
[1731335099330,0.87252721,81642.0,81640.0,0.000844]
[1731335099843,1.04663066,81642.0,81640.0,0.000844]
[1731335100044,1.15163066,81642.0,81640.0,0.000844]
[1731335100243,0.002,81614.0,81606.0,0.050844]
[1731335100445,0.0764,81619.0,81613.0,0.18246954]
[1731335100657,0.0764,81619.0,81610.0,0.16910345]
[1731335100658,0.245023,81625.0,81611.0,0.00245034]
[1731335100912,0.12594221,81624.0,81616.0,0.122524]
[1731335101115,0.12594221,81624.0,81612.0,0.0043853]
[1731335101116,0.002,81623.0,81612.0,0.0043853]
[1731335101330,0.37097321,81622.0,81612.0,0.0043853]
[1731335101472,0.37097321,81622.0,81610.0,0.16910345]
[1731335101473,0.12594221,81622.0,81610.0,0.16910345]
[1731335101880,0.122522,81618.0,81611.0,0.00638635]
[1731335102252,0.122517,81621.0,81611.0,0.00538635]
[1731335102369,0.24845921,81621.0,81613.0,0.122528]
[1731335102577,0.12594221,81621.0,81614.0,0.122527]
[1731335102804,0.18246954,81627.0,81615.0,0.00245034]
[1731335103007,0.18246954,81627.0,81614.0,0.00438358]
[1731335103008,0.12594221,81626.0,81616.0,0.00245018]
[1731335103240,0.03644697,81643.0,81616.0,0.00245018]
[1731335103241,0.3256,81640.0,81624.0,0.16910345]
[1731335103438,0.18246954,81629.0,81628.0,0.122506]
[1731335103698,0.18246954,81629.0,81625.0,0.00244995]
[1731335103699,0.12594221,81638.0,81625.0,0.00682799]
[1731335103813,0.0756,81640.0,81628.0,0.00436902]
[1731335104020,0.0756,81640.0,81634.0,0.122497]
[1731335104223,0.0756,81640.0,81630.0,0.16910345]
[1731335104416,0.18246954,81645.0,81635.0,0.0043711]
[1731335104672,0.12594221,81644.0,81634.0,0.122497]
[1731335104887,0.12594221,81644.0,81636.0,0.00244964]
[1731335105237,0.122489,81640.0,81637.0,0.00437318]
[1731335105445,0.494962,81646.0,81637.0,0.00437318]
[1731335105676,0.19146954,81645.0,81635.0,0.001]
[1731335105889,0.19146954,81645.0,81634.0,0.244994]
[1731335105890,0.18246954,81645.0,81634.0,0.244994]
[1731335106277,0.009,81644.0,81636.0,0.002]
[1731335106441,0.002,81641.0,81636.0,0.002]
[1731335106653,0.122486,81642.0,81637.0,0.00436354]
[1731335106870,0.009,81644.0,81637.0,0.00436354]
[1731335107009,0.009,81644.0,81639.0,0.122489]
[1731335107213,0.009,81644.0,81641.0,0.122486]
[1731335107414,0.18246954,81645.0,81640.0,0.00436146]
[1731335107614,0.0784,81649.0,81643.0,0.122484]
[1731335107843,0.18246954,81645.0,81641.0,0.00441698]
[1731335108015,0.18246954,81645.0,81635.0,0.25099]
[1731335108016,0.31395054,81645.0,81644.0,0.00441178]
[1731335108216,0.25942321,81645.0,81644.0,0.00441178]
[1731335108490,0.122494,81636.0,81635.0,0.001]
[1731335108631,0.32393621,81636.0,81635.0,0.001]
[1731335108828,0.20144221,81636.0,81622.0,0.250031]
[1731335109026,0.244995,81634.0,81622.0,0.005]
[1731335109257,0.12594221,81633.0,81623.0,0.00442308]
[1731335109471,0.12594221,81633.0,81625.0,0.245022]
[1731335109680,0.12594221,81633.0,81622.0,0.005]
[1731335109867,0.122501,81632.0,81626.0,0.12692849]
[1731335110036,0.12594221,81633.0,81622.0,0.005]
[1731335110239,0.03643535,81662.0,81627.0,0.00441735]
[1731335110240,0.0755,81646.0,81627.0,0.00441735]
[1731335110465,0.25,81660.0,81627.0,0.00441735]
[1731335110466,0.18246954,81643.0,81631.0,0.023]
[1731335110753,0.18246954,81643.0,81635.0,0.001]
[1731335111160,0.122493,81637.0,81636.0,0.00441379]
[1731335111384,0.122494,81636.0,81635.0,0.01411281]
[1731335111584,0.122494,81636.0,81631.0,0.001]
[1731335111834,0.244977,81640.0,81631.0,0.001]
[1731335112038,0.002,81638.0,81635.0,0.003]
[1731335112244,0.122497,81635.0,81625.0,0.12251]
[1731335112652,0.002,81636.0,81629.0,0.122504]
[1731335112856,0.002,81636.0,81626.0,0.0044189]
[1731335112857,0.002,81636.0,81634.0,0.122497]
[1731335113055,0.002,81636.0,81630.0,0.00441612]
[1731335113256,0.002,81636.0,81635.0,0.12691307]
[1731335113578,0.002,81636.0,81635.0,0.01993649]
[1731335113723,0.002,81636.0,81635.0,0.00441355]
[1731335113933,0.122499,81633.0,81630.0,0.01307424]
[1731335114140,0.002,81636.0,81635.0,0.00441707]
[1731335114330,0.002,81636.0,81625.0,0.01307348]
[1731335114331,0.12594221,81636.0,81625.0,0.01307348]
[1731335114587,0.12838595,81635.0,81631.0,0.001]
[1731335114801,0.12594221,81635.0,81631.0,0.001]
[1731335115030,0.12493774,81637.0,81624.0,0.005]
[1731335115031,0.00244374,81637.0,81629.0,0.24501]
[1731335115231,0.001688,81644.0,81630.0,0.001]
[1731335115437,0.12594221,81643.0,81635.0,0.001]
[1731335115647,0.12594221,81643.0,81637.0,0.122492]
[1731335115857,0.12594221,81643.0,81632.0,0.245001]
[1731335115858,0.009,81635.0,81634.0,0.122497]
[1731335116070,0.009,81635.0,81634.0,0.01307212]
[1731335116247,0.009,81635.0,81634.0,0.122497]
[1731335116401,0.009,81635.0,81634.0,0.13556912]
[1731335116608,0.009,81635.0,81634.0,0.01307212]
[1731335117119,0.24842721,81643.0,81633.0,0.122498]
[1731335117329,0.12594221,81643.0,81634.0,0.13556912]
[1731335117534,0.12594221,81643.0,81635.0,0.01307212]
[1731335117734,0.12594221,81643.0,81631.0,0.245002]
[1731335117735,0.12594221,81643.0,81632.0,0.01307274]
[1731335117936,0.001688,81644.0,81633.0,0.00244975]
[1731335118138,0.18246954,81643.0,81640.0,0.244977]
[1731335118354,0.18246954,81643.0,81642.0,0.122485]
[1731335118562,0.18246954,81643.0,81642.0,0.01307274]
[1731335118760,0.001688,81644.0,81638.0,0.13556374]
[1731335118962,0.001688,81644.0,81639.0,0.25805274]
[1731335119130,0.001688,81644.0,81643.0,0.122484]
[1731335119330,0.001688,81644.0,81643.0,0.13555674]
[1731335120140,0.010688,81644.0,81643.0,0.13555674]
[1731335120515,0.001688,81644.0,81643.0,0.14555674]
[1731335120657,0.001688,81644.0,81643.0,0.15176789]
[1731335120869,0.001688,81644.0,81643.0,0.59074069]
[1731335120870,0.002688,81644.0,81643.0,0.59074069]
[1731335121105,1.0,81655.0,81654.0,0.255467]
[1731335121298,1.0,81655.0,81654.0,0.5635854]
[1731335121457,1.0,81655.0,81654.0,0.58451254]
[1731335122112,0.92675781,81655.0,81654.0,0.58451254]
[1731335122452,0.80071903,81655.0,81654.0,0.58451254]
[1731335122653,0.80071903,81655.0,81654.0,0.59851254]
[1731335123437,0.80071903,81655.0,81654.0,0.60477862]
[1731335123771,0.42070097,81655.0,81654.0,0.66377862]
[1731335123969,0.3846727,81655.0,81654.0,0.66377862]
[1731335124214,0.3836727,81655.0,81654.0,0.65377862]
[1731335124397,0.3846727,81655.0,81654.0,0.65377862]
[1731335124739,0.3836727,81655.0,81654.0,0.65857383]
[1731335125089,0.18246954,81674.0,81673.0,0.132439]
[1731335125287,0.18246954,81674.0,81673.0,0.26851174]
[1731335125496,0.18246954,81683.0,81682.0,0.232425]
[1731335125729,0.18246954,81683.0,81682.0,0.41460119]
[1731335125979,0.18246954,81683.0,81682.0,0.41939259]
[1731335126184,0.00169,81695.0,81690.0,0.155414]
[1731335126185,0.001686,81694.0,81690.0,0.155414]
[1731335126333,0.001686,81694.0,81690.0,0.5635324]
[1731335126703,0.000694,81700.0,81699.0,0.2554]
[1731335126902,0.00169,81705.0,81704.0,0.255393]
[1731335127085,0.00169,81705.0,81704.0,0.26846574]
[1731335127346,0.00169,81705.0,81704.0,0.39912894]
[1731335127567,0.00169,81705.0,81704.0,0.42780602]
[1731335127916,0.00169,81705.0,81704.0,0.39907259]
[1731335128137,0.00169,81705.0,81704.0,0.41307259]
[1731335128138,0.00269,81705.0,81704.0,0.41307259]
[1731335128288,0.00269,81705.0,81704.0,0.44174967]
[1731335128491,0.18316354,81716.0,81712.0,0.255381]
[1731335128492,0.000694,81716.0,81712.0,0.255381]
[1731335128708,0.18246954,81715.0,81712.0,0.59928057]
[1731335128904,0.18246954,81715.0,81712.0,0.59683352]
[1731335129219,0.14440308,81725.0,81724.0,0.122363]
[1731335129438,0.18246954,81715.0,81713.0,0.122378]
[1731335129632,0.246729,81723.0,81704.0,0.028]
[1731335129633,0.244747,81717.0,81704.0,0.028]
[1731335129880,0.372379,81713.0,81712.0,0.014]
[1731335130089,0.74508021,81713.0,81712.0,0.014]
[1731335130621,0.002,81701.0,81679.0,0.005]
[1731335130839,0.25,81705.0,81678.0,0.005]
[1731335130840,0.122402,81698.0,81697.0,0.18246954]
[1731335131044,0.002,81696.0,81683.0,0.122423]
[1731335131244,0.002,81696.0,81675.0,0.005]
[1731335131245,0.37074721,81698.0,81682.0,0.005]
[1731335131449,0.169799,81700.0,81692.0,0.122409]
[1731335131767,0.0454,81700.0,81683.0,0.244848]
[1731335131969,0.0454,81700.0,81693.0,0.244816]
[1731335132174,0.0454,81700.0,81697.0,0.001]
[1731335132374,0.0454,81700.0,81698.0,0.122401]
[1731335132535,0.0454,81700.0,81685.0,0.244842]
[1731335132740,0.0454,81700.0,81694.0,0.122407]
[1731335132945,0.002,81710.0,81694.0,0.00244806]
[1731335133172,0.12794221,81710.0,81701.0,0.244795]
[1731335133420,0.25,81713.0,81705.0,0.244782]
[1731335133652,0.12594221,81711.0,81707.0,0.122387]
[1731335133864,0.003688,81717.0,81716.0,0.122375]
[1731335133865,0.001688,81717.0,81716.0,0.122375]
[1731335134286,0.25,81733.0,81712.0,0.244761]
[1731335134287,0.18246954,81730.0,81713.0,0.122379]
[1731335134546,0.30841175,81730.0,81724.0,0.122361]
[1731335134720,0.0492,81736.0,81722.0,0.24473]
[1731335134977,0.18246954,81733.0,81722.0,0.24473]
[1731335135100,0.0492,81736.0,81728.0,0.244711]
[1731335135302,0.18246954,81733.0,81720.0,0.005]
[1731335135503,0.001,81730.0,81720.0,0.005]
[1731335135741,0.122356,81729.0,81724.0,0.001]
[1731335136318,0.259387,81735.0,81724.0,0.123361]
[1731335136523,0.18246954,81733.0,81724.0,0.001]
[1731335136828,0.18246954,81733.0,81725.0,0.122361]
[1731335137011,0.14063621,81735.0,81726.0,0.122359]
[1731335137225,0.14063621,81735.0,81728.0,0.001]
[1731335137226,0.244696,81734.0,81728.0,0.001]
[1731335137432,0.14163621,81735.0,81728.0,0.001]
[1731335137612,0.14163621,81735.0,81722.0,0.244732]
[1731335137613,0.122351,81732.0,81725.0,0.12236]
[1731335137867,0.122353,81731.0,81724.0,0.001]
[1731335138075,0.002,81733.0,81722.0,0.244732]
[1731335138076,0.12235,81733.0,81722.0,0.244732]
[1731335138278,0.002,81729.0,81723.0,0.244729]
[1731335138535,0.002,81729.0,81720.0,0.005]
[1731335138536,0.002,81729.0,81728.0,0.123357]
[1731335138690,0.002,81729.0,81728.0,0.122357]
[1731335138906,0.000694,81735.0,81730.0,0.122353]
[1731335139106,0.000694,81735.0,81734.0,0.25416442]
[1731335139308,0.000694,81735.0,81731.0,0.122352]
[1731335139570,0.25,81746.0,81721.0,0.005]
[1731335139571,0.122349,81733.0,81732.0,0.01296208]
[1731335139729,0.122337,81741.0,81726.0,0.01296208]
[1731335140075,0.12594221,81740.0,81726.0,0.18246954]
[1731335140211,0.001,81731.0,81730.0,0.122354]
[1731335140414,0.25,81746.0,81735.0,0.122345]
[1731335140610,0.25,81746.0,81741.0,0.122336]
[1731335140973,0.25,81746.0,81742.0,0.01296208]
[1731335141318,0.25,81746.0,81743.0,0.01296208]
[1731335141722,0.25,81746.0,81745.0,0.122331]
[1731335141937,0.25,81746.0,81738.0,0.244682]
[1731335141938,0.251,81746.0,81744.0,0.01295524]
[1731335142361,0.122331,81745.0,81744.0,0.01295524]
[1731335143462,0.122331,81745.0,81744.0,0.02095524]
[1731335144294,0.123331,81745.0,81744.0,0.03491223]
[1731335144605,0.123331,81745.0,81744.0,0.02591223]
[1731335144803,0.123331,81745.0,81744.0,0.02691223]
[1731335144954,0.132331,81745.0,81744.0,0.02791223]
[1731335145354,0.124331,81745.0,81744.0,0.02691223]
[1731335145759,0.137331,81745.0,81744.0,0.02791223]
[1731335146200,0.136331,81745.0,81744.0,0.04766915]
[1731335146403,0.122331,81745.0,81744.0,0.02593028]
[1731335146606,0.136331,81745.0,81744.0,0.04870557]
[1731335146846,0.136331,81745.0,81744.0,0.04770557]
[1731335147260,0.137331,81745.0,81744.0,0.04870557]
[1731335147429,0.135331,81745.0,81744.0,0.04770557]
[1731335148032,0.136331,81745.0,81744.0,0.07470594]
[1731335148241,0.14039325,81746.0,81744.0,0.04870557]
[1731335148242,0.01445104,81746.0,81744.0,0.04870557]
[1731335148484,0.122331,81745.0,81744.0,0.01295524]
[1731335148685,0.122331,81745.0,81744.0,0.07280803]
[1731335148905,0.135331,81745.0,81744.0,0.0738084]
[1731335149254,0.135331,81745.0,81744.0,0.0728084]
[1731335149255,0.50327321,81745.0,81744.0,0.0728084]
[1731335149686,0.50327321,81745.0,81739.0,0.02072954]
[1731335149687,0.005,81743.0,81739.0,0.02072954]
[1731335149889,0.122339,81740.0,81739.0,0.02072954]
[1731335150107,0.122339,81740.0,81739.0,0.04157472]
[1731335150290,0.135332,81745.0,81744.0,0.001]
[1731335150493,0.135332,81745.0,81744.0,0.02084518]
[1731335151296,0.122339,81740.0,81739.0,0.02072954]
[1731335151493,0.01445104,81746.0,81744.0,0.001]
[1731335151713,0.122331,81745.0,81744.0,0.001]
[1731335151926,0.122331,81745.0,81744.0,0.02188345]
[1731335152977,0.0823,81751.0,81744.0,0.02088345]
[1731335153128,0.12594221,81750.0,81744.0,0.02088345]
[1731335153320,0.122331,81745.0,81744.0,0.001]
[1731335153523,0.122331,81745.0,81744.0,0.02185579]
[1731335153840,0.122331,81745.0,81744.0,0.02285579]
[1731335154303,0.122331,81745.0,81744.0,0.02185579]
[1731335154513,0.122331,81745.0,81744.0,0.02285579]
[1731335154714,0.12594221,81750.0,81744.0,0.02185579]
[1731335154831,0.37059221,81750.0,81745.0,0.02085579]
[1731335155046,0.122328,81747.0,81746.0,0.02085579]
[1731335155238,0.12594221,81750.0,81746.0,0.02085579]
[1731335155633,0.244651,81749.0,81747.0,0.02085579]
[1731335155927,0.002,81745.0,81744.0,0.002]
[1731335156093,0.124331,81745.0,81744.0,0.02372257]
[1731335156344,0.124331,81745.0,81744.0,0.02272257]
[1731335156568,0.122331,81745.0,81744.0,0.02172257]
[1731335156933,0.001684,81746.0,81744.0,0.02172257]
[1731335157110,0.001684,81746.0,81745.0,0.02088057]
[1731335157495,0.124014,81746.0,81745.0,0.02088057]
[1731335159141,0.126014,81746.0,81745.0,0.04276446]
[1731335159800,0.126014,81746.0,81745.0,0.02188057]
[1731335160290,0.126014,81746.0,81745.0,0.02287972]
[1731335160487,0.126014,81746.0,81745.0,0.02187972]
[1731335160900,0.126014,81746.0,81745.0,0.02287972]
[1731335161725,0.126014,81746.0,81745.0,0.03594371]
[1731335161899,0.16406785,81746.0,81745.0,0.03594371]
[1731335162245,0.16406785,81746.0,81745.0,0.01506399]
[1731335162448,0.04173785,81746.0,81745.0,0.01506399]
[1731335162658,0.003684,81746.0,81745.0,0.13739499]
[1731335163113,0.003684,81746.0,81745.0,0.15831346]
[1731335163288,0.327317,81761.0,81745.0,0.03498246]
[1731335163289,0.05311705,81761.0,81745.0,0.03498246]
[1731335163570,0.18246954,81753.0,81748.0,0.122326]
[1731335163718,0.244637,81754.0,81749.0,0.03398246]
[1731335163927,0.122321,81752.0,81750.0,0.03398246]
[1731335164150,0.122321,81752.0,81751.0,0.03398246]
[1731335164493,0.244618,81760.0,81751.0,0.03398246]
[1731335164609,0.122319,81753.0,81752.0,0.03398246]
[1731335164992,0.122319,81754.0,81752.0,0.03398246]
[1731335165213,0.12232,81753.0,81747.0,0.122327]
[1731335165411,0.244626,81758.0,81748.0,0.15631811]
[1731335165569,0.122319,81753.0,81749.0,0.03399111]
[1731335165774,0.122319,81753.0,81750.0,0.03399111]
[1731335165994,0.122321,81752.0,81751.0,0.03399111]
[1731335166194,0.122319,81753.0,81751.0,0.03399111]
[1731335166392,0.122319,81753.0,81752.0,0.03399111]
[1731335167360,0.244633,81755.0,81752.0,0.03399111]
[1731335167361,0.122317,81755.0,81752.0,0.03399111]
[1731335167509,0.15852635,81756.0,81753.0,0.03399111]
[1731335167880,0.15852635,81756.0,81754.0,0.03399111]
[1731335168085,0.03621135,81756.0,81739.0,0.00613917]
[1731335168296,0.05431703,81759.0,81745.0,0.03482647]
[1731335168498,0.122322,81752.0,81746.0,0.15631347]
[1731335168710,0.18246954,81751.0,81747.0,0.03398447]
[1731335168919,0.18246954,81751.0,81745.0,0.000842]
[1731335168920,0.12233,81746.0,81745.0,0.000842]
[1731335169129,0.16043824,81746.0,81745.0,0.03483745]
[1731335169366,0.16043824,81746.0,81745.0,0.000842]
[1731335169367,0.67107214,81746.0,81745.0,0.000842]
[1731335169564,0.67107214,81746.0,81726.0,0.18246954]
[1731335169565,1.12742174,81746.0,81726.0,0.18246954]
[1731335169780,0.122358,81727.0,81726.0,0.18246954]
[1731335169987,0.17709415,81727.0,81726.0,0.18246954]
[1731335170195,0.21522001,81727.0,81726.0,0.18246954]
[1731335170402,0.122368,81721.0,81716.0,0.122374]
[1731335170599,0.122369,81720.0,81714.0,0.122377]
[1731335170807,0.122371,81719.0,81714.0,0.122377]